[Event "*** Titled Tuesday 3|2 Blitz"]
[Site "Chess.com"]
[Date "2016.06.07"]
[Round "1"]
[White "Penguininja"]
[Black "Boryboy"]
[Result "0-1"]
[WhiteElo "2217"]
[BlackElo "2537"]
[TimeControl "180+2"]
[EndTime "17:06:54 PDT"]
[Termination "Boryboy won by resignation"]

1. d4 {[%clk 0:02:47.2]} 1... e6 {[%clk 0:03:01.9]} 2. Nf3 {[%clk 0:02:46.1]}
2... Nf6 {[%clk 0:02:59.3]} 3. c4 {[%clk 0:02:45]} 3... a5 {[%clk 0:02:53.5]} 4.
g3 {[%clk 0:02:45.2]} 4... Bb4+ {[%clk 0:02:54]} 5. Bd2 {[%clk 0:02:45.8]} 5...
d5 {[%clk 0:02:55.3]} 6. Bg2 {[%clk 0:02:47]} 6... dxc4 {[%clk 0:02:53.5]} 7.
O-O {[%clk 0:02:46.8]} 7... Nc6 {[%clk 0:02:54.5]} 8. Bg5 {[%clk 0:02:04.8]}
8... h6 {[%clk 0:02:41.5]} 9. Bxf6 {[%clk 0:02:05.4]} 9... Qxf6 {[%clk
0:02:43.4]} 10. a3 {[%clk 0:02:06.2]} 10... Bd6 {[%clk 0:02:41]} 11. Nc3 {[%clk
0:01:56.6]} 11... e5 {[%clk 0:02:39.7]} 12. dxe5 {[%clk 0:01:47.6]} 12... Nxe5
{[%clk 0:02:38.8]} 13. Nxe5 {[%clk 0:01:48.3]} 13... Qxe5 {[%clk 0:02:39.4]} 14.
Qa4+ {[%clk 0:01:47]} 14... Bd7 {[%clk 0:02:31]} 15. Qxc4 {[%clk 0:01:47.5]}
15... Rb8 {[%clk 0:02:29.3]} 16. Rfd1 {[%clk 0:01:24.4]} 16... O-O {[%clk
0:02:27.6]} 17. Rac1 {[%clk 0:01:16.9]} 17... Be6 {[%clk 0:02:24.1]} 18. Nd5
{[%clk 0:01:15.6]} 18... Qxb2 {[%clk 0:02:19.8]} 19. Qh4 {[%clk 0:00:59.7]}
19... Bxd5 {[%clk 0:02:13.6]} 20. Bxd5 {[%clk 0:00:59.1]} 20... Qxa3 {[%clk
0:02:09.3]} 21. Rc4 {[%clk 0:00:58.9]} 21... Qb2 {[%clk 0:02:02.1]} 22. Rg4
{[%clk 0:00:59.6]} 22... Kh8 {[%clk 0:02:02.9]} 23. Qh5 {[%clk 0:00:57.6]} 23...
Rbd8 {[%clk 0:01:56.3]} 24. Bxf7 {[%clk 0:00:52]} 24... Qxe2 {[%clk 0:01:50.7]}
25. Rf1 {[%clk 0:00:50.5]} 25... Qe5 {[%clk 0:01:41.4]} 26. Qg6 {[%clk
0:00:39.4]} 26... Qf6 {[%clk 0:01:31.8]} 27. Qxf6 {[%clk 0:00:39.5]} 27... gxf6
{[%clk 0:01:33.7]} 28. Bd5 {[%clk 0:00:39.8]} 28... c6 {[%clk 0:01:30.1]} 29.
Ba2 {[%clk 0:00:38.3]} 29... Bc5 {[%clk 0:01:27.8]} 30. Rg6 {[%clk 0:00:39.3]}
30... Kh7 {[%clk 0:01:27.9]} 31. Bb1 {[%clk 0:00:39.8]} 31... f5 {[%clk
0:01:27.7]} 32. Re6 {[%clk 0:00:39.6]} 32... Kg7 {[%clk 0:01:29]} 33. g4 {[%clk
0:00:36.7]} 33... Rf6 {[%clk 0:01:28.7]} 34. gxf5 {[%clk 0:00:22.7]} 34... Rxe6
{[%clk 0:01:28.9]} 35. fxe6 {[%clk 0:00:23.9]} 35... Kf6 {[%clk 0:01:30.8]} 36.
Re1 {[%clk 0:00:25]} 36... Rd2 {[%clk 0:01:31]} 0-1

[Event "*** Titled Tuesday 3|2 Blitz"]
[Site "Chess.com"]
[Date "2016.06.07"]
[Round "1"]
[White "Durarbayli"]
[Black "platy3"]
[Result "0-1"]
[WhiteElo "2317"]
[BlackElo "2684"]
[TimeControl "180+2"]
[EndTime "17:07:32 PDT"]
[Termination "platy3 won by resignation"]

1. e4 {[%clk 0:02:59.7]} 1... c5 {[%clk 0:02:59.6]} 2. Nf3 {[%clk 0:02:54.2]}
2... e6 {[%clk 0:02:59.8]} 3. d4 {[%clk 0:02:47.8]} 3... cxd4 {[%clk 0:03:00.8]}
4. Nxd4 {[%clk 0:02:49.7]} 4... a6 {[%clk 0:03:02.5]} 5. c4 {[%clk 0:02:50.5]}
5... Nf6 {[%clk 0:03:01.6]} 6. Nc3 {[%clk 0:02:50.8]} 6... Qc7 {[%clk
0:03:03.1]} 7. Be2 {[%clk 0:02:51.2]} 7... Be7 {[%clk 0:03:04.6]} 8. O-O {[%clk
0:02:51.3]} 8... O-O {[%clk 0:03:06.3]} 9. Be3 {[%clk 0:02:47.8]} 9... d6 {[%clk
0:03:07.2]} 10. a4 {[%clk 0:02:45.5]} 10... Nc6 {[%clk 0:02:56.5]} 11. Nb3
{[%clk 0:02:35.4]} 11... Nd7 {[%clk 0:02:46.8]} 12. a5 {[%clk 0:02:33.4]} 12...
Nc5 {[%clk 0:02:42.8]} 13. Nd2 {[%clk 0:02:21.3]} 13... Bf6 {[%clk 0:02:35.4]}
14. Qc2 {[%clk 0:02:13.9]} 14... Nd4 {[%clk 0:02:31.8]} 15. Bxd4 {[%clk
0:02:12.1]} 15... Bxd4 {[%clk 0:02:32.4]} 16. b4 {[%clk 0:02:13.1]} 16... Nd7
{[%clk 0:02:33.4]} 17. Nb3 {[%clk 0:02:09.9]} 17... Bf6 {[%clk 0:02:33.6]} 18.
Rad1 {[%clk 0:02:08.3]} 18... Ne5 {[%clk 0:02:29.1]} 19. Na4 {[%clk 0:02:02]}
19... Bd7 {[%clk 0:02:22.8]} 20. Nb6 {[%clk 0:02:02.4]} 20... Rad8 {[%clk
0:02:22.3]} 21. c5 {[%clk 0:01:55]} 21... Bc6 {[%clk 0:02:10.1]} 22. f4 {[%clk
0:01:53.3]} 22... Ng6 {[%clk 0:02:06.7]} 23. cxd6 {[%clk 0:01:50.4]} 23... Rxd6
{[%clk 0:02:08.6]} 24. Rxd6 {[%clk 0:01:39]} 24... Qxd6 {[%clk 0:02:10.5]} 25.
e5 {[%clk 0:01:37]} 25... Nxe5 {[%clk 0:02:11.6]} 26. fxe5 {[%clk 0:01:35.7]}
26... Bxe5 {[%clk 0:02:13.5]} 27. h3 {[%clk 0:01:19.6]} 27... Qxb4 {[%clk
0:02:09.9]} 28. Qc4 {[%clk 0:01:13.2]} 28... Qd6 {[%clk 0:02:03.3]} 29. Kh1
{[%clk 0:01:06.1]} 29... Qe7 {[%clk 0:01:47.9]} 30. Nd2 {[%clk 0:00:49.7]} 30...
Bb8 {[%clk 0:01:28.2]} 31. Nf3 {[%clk 0:00:37.4]} 31... Qd6 {[%clk 0:01:24.4]}
32. Rd1 {[%clk 0:00:36.4]} 32... Qg3 {[%clk 0:01:19.3]} 33. Qg4 {[%clk
0:00:36.5]} 33... Qf2 {[%clk 0:01:19.3]} 34. Ng1 {[%clk 0:00:28.3]} 34... h5
{[%clk 0:01:12.2]} 35. Qg5 {[%clk 0:00:25.9]} 35... Bf4 {[%clk 0:01:06]} 36. Rf1
{[%clk 0:00:20.3]} 36... Qxf1 {[%clk 0:00:58.1]} 0-1

[Event "*** Titled Tuesday 3|2 Blitz"]
[Site "Chess.com"]
[Date "2016.06.07"]
[Round "1"]
[White "SwiftyMcBishop"]
[Black "ZEN-22"]
[Result "0-1"]
[WhiteElo "1934"]
[BlackElo "2403"]
[TimeControl "180+2"]
[EndTime "17:07:48 PDT"]
[Termination "ZEN-22 won by resignation"]

1. e4 {[%clk 0:03:01.7]} 1... e6 {[%clk 0:02:58.2]} 2. d4 {[%clk 0:03:01.4]}
2... c5 {[%clk 0:02:59.8]} 3. c3 {[%clk 0:03:00.9]} 3... d5 {[%clk 0:03:00.2]}
4. exd5 {[%clk 0:03:00.9]} 4... Qxd5 {[%clk 0:02:58.9]} 5. Nf3 {[%clk
0:03:02.2]} 5... Nc6 {[%clk 0:02:58.7]} 6. Be2 {[%clk 0:03:03.1]} 6... Nf6
{[%clk 0:02:59.4]} 7. Be3 {[%clk 0:03:03.9]} 7... cxd4 {[%clk 0:02:59.9]} 8.
cxd4 {[%clk 0:03:04.5]} 8... Bd6 {[%clk 0:02:59.5]} 9. Nc3 {[%clk 0:03:05.3]}
9... Qa5 {[%clk 0:03:00.2]} 10. h3 {[%clk 0:03:04.9]} 10... O-O {[%clk 0:03:01]}
11. O-O {[%clk 0:03:05.3]} 11... e5 {[%clk 0:03:02.1]} 12. dxe5 {[%clk 0:02:53]}
12... Nxe5 {[%clk 0:03:03.1]} 13. Qxd6 {[%clk 0:02:35.2]} 13... Ng6 {[%clk
0:03:03.1]} 14. Bc5 {[%clk 0:02:29.4]} 14... Rd8 {[%clk 0:03:03.2]} 15. Bb4
{[%clk 0:02:16.1]} 15... Rxd6 {[%clk 0:03:01.1]} 16. Bxa5 {[%clk 0:02:16.7]}
16... b6 {[%clk 0:03:02.5]} 17. Bb4 {[%clk 0:02:17.4]} 17... Rd8 {[%clk
0:03:03.6]} 18. Rad1 {[%clk 0:02:17.7]} 18... Bb7 {[%clk 0:03:04.3]} 19. Rxd8+
{[%clk 0:02:16.7]} 19... Rxd8 {[%clk 0:03:04.7]} 20. Be7 {[%clk 0:02:17.8]}
20... Nxe7 {[%clk 0:03:04.4]} 21. Rd1 {[%clk 0:02:14.2]} 21... Rc8 {[%clk
0:03:03.3]} 22. Nb5 {[%clk 0:02:03.2]} 22... Ra8 {[%clk 0:03:01.4]} 23. Nxa7
{[%clk 0:01:48.9]} 23... Ng6 {[%clk 0:02:54.1]} 24. Nb5 {[%clk 0:01:33.9]} 24...
Nf4 {[%clk 0:02:54.6]} 25. Bc4 {[%clk 0:01:23.2]} 25... Nxh3+ {[%clk 0:02:52]}
26. gxh3 {[%clk 0:01:16.9]} 26... Bxf3 {[%clk 0:02:52.7]} 27. Rd6 {[%clk
0:01:06.9]} 27... Rb8 {[%clk 0:02:53.1]} 28. Nd4 {[%clk 0:00:54.7]} 28... Be4
{[%clk 0:02:50.7]} 29. Nc6 {[%clk 0:00:46.1]} 29... Re8 {[%clk 0:02:51.3]} 30.
Nd8 {[%clk 0:00:40.1]} 30... Bg6 {[%clk 0:02:50.8]} 31. Nb7 {[%clk 0:00:36.8]}
31... Be4 {[%clk 0:02:48.2]} 32. Rxb6 {[%clk 0:00:31.4]} 32... Rb8 {[%clk
0:02:47.4]} 33. Ba6 {[%clk 0:00:29.1]} 33... Nd7 {[%clk 0:02:45.3]} 34. Rb3
{[%clk 0:00:21.7]} 34... Bd5 {[%clk 0:02:44.2]} 35. Rb4 {[%clk 0:00:17.3]} 35...
Nc5 {[%clk 0:02:44.4]} 36. Nxc5 {[%clk 0:00:10.2]} 36... Rxb4 {[%clk 0:02:44.5]}
37. Nd3 {[%clk 0:00:11.2]} 37... Ra4 {[%clk 0:02:44.5]} 38. Bb5 {[%clk
0:00:11.5]} 38... Rxa2 {[%clk 0:02:45.4]} 39. Kh2 {[%clk 0:00:12.7]} 39... Be4
{[%clk 0:02:45.6]} 40. Kg3 {[%clk 0:00:14]} 40... Bxd3 {[%clk 0:02:46.8]} 41.
Bxd3 {[%clk 0:00:15.7]} 41... Rxb2 {[%clk 0:02:48.7]} 42. Be4 {[%clk 0:00:17.1]}
42... g6 {[%clk 0:02:50.2]} 43. f3 {[%clk 0:00:18]} 43... Kg7 {[%clk 0:02:51.8]}
44. Bd5 {[%clk 0:00:19.4]} 44... h5 {[%clk 0:02:53.7]} 45. Be4 {[%clk
0:00:20.9]} 45... f5 {[%clk 0:02:55.1]} 46. Bd5 {[%clk 0:00:21]} 46... h4+
{[%clk 0:02:57]} 47. Kxh4 {[%clk 0:00:21.4]} 47... Rg2 {[%clk 0:02:58.6]} 48. f4
{[%clk 0:00:19.9]} 48... Rg1 {[%clk 0:02:59.5]} 49. Bc6 {[%clk 0:00:19.7]} 49...
Kh6 {[%clk 0:03:00.9]} 50. Be8 {[%clk 0:00:20.1]} 50... g5+ {[%clk 0:03:01.8]}
51. fxg5+ {[%clk 0:00:20.8]} 51... Rxg5 {[%clk 0:03:03.7]} 52. Bc6 {[%clk
0:00:22.1]} 52... f4 {[%clk 0:03:05]} 53. Bf3 {[%clk 0:00:23.6]} 53... Rg3
{[%clk 0:03:06.2]} 54. Be2 {[%clk 0:00:23.7]} 54... Kg6 {[%clk 0:03:07.5]} 55.
Bg4 {[%clk 0:00:23.8]} 55... Kf6 {[%clk 0:03:08.3]} 56. Bd1 {[%clk 0:00:24.1]}
56... Rg5 {[%clk 0:03:09.5]} 57. Bf3 {[%clk 0:00:24.6]} 57... Kf5 {[%clk
0:03:10.4]} 58. Bh1 {[%clk 0:00:24.2]} 58... Rg3 {[%clk 0:03:10.8]} 59. Bc6
{[%clk 0:00:24.4]} 59... Rg5 {[%clk 0:03:11.9]} 60. Bd7+ {[%clk 0:00:24.9]}
60... Kf6 {[%clk 0:03:13.3]} 61. Bc6 {[%clk 0:00:25.6]} 61... Rg7 {[%clk
0:03:14.7]} 62. Bf3 {[%clk 0:00:24.2]} 62... Kf5 {[%clk 0:03:06.1]} 63. Bg4+
{[%clk 0:00:15.4]} 63... Ke4 {[%clk 0:03:07.2]} 64. Bc8 {[%clk 0:00:13.9]} 64...
f3 {[%clk 0:03:08.3]} 65. Ba6 {[%clk 0:00:13.6]} 65... Kf4 {[%clk 0:03:09.5]}
66. Kh5 {[%clk 0:00:13.9]} 66... Rh7+ {[%clk 0:03:09.2]} 67. Kg6 {[%clk
0:00:15.5]} 67... Rxh3 {[%clk 0:03:11.1]} 68. Kf6 {[%clk 0:00:16.9]} 68... f2
{[%clk 0:03:12.4]} 69. Ke6 {[%clk 0:00:17.9]} 69... Rh6+ {[%clk 0:03:13.8]} 70.
Kd5 {[%clk 0:00:18.8]} 70... Rxa6 {[%clk 0:03:15.7]} 0-1

[Event "*** Titled Tuesday 3|2 Blitz"]
[Site "Chess.com"]
[Date "2016.06.07"]
[Round "1"]
[White "Fawolizzo"]
[Black "Rumpel-VK"]
[Result "0-1"]
[WhiteElo "2004"]
[BlackElo "2409"]
[TimeControl "180+2"]
[EndTime "17:07:55 PDT"]
[Termination "Rumpel-VK won by resignation"]

1. d4 {[%clk 0:02:59.1]} 1... d5 {[%clk 0:02:57.4]} 2. Nf3 {[%clk 0:02:59.7]}
2... Nf6 {[%clk 0:02:57.8]} 3. c4 {[%clk 0:03:00.4]} 3... dxc4 {[%clk
0:02:58.1]} 4. Qa4+ {[%clk 0:02:59.2]} 4... c6 {[%clk 0:02:52.6]} 5. Qxc4 {[%clk
0:02:59.4]} 5... Bf5 {[%clk 0:02:51]} 6. g3 {[%clk 0:02:41.4]} 6... e6 {[%clk
0:02:43]} 7. Bg2 {[%clk 0:02:41.1]} 7... Nbd7 {[%clk 0:02:35.5]} 8. O-O {[%clk
0:02:40.6]} 8... Be7 {[%clk 0:02:35.5]} 9. Bg5 {[%clk 0:02:27.7]} 9... O-O
{[%clk 0:02:31.5]} 10. Nbd2 {[%clk 0:02:23.5]} 10... Ne4 {[%clk 0:02:22.2]} 11.
Bxe7 {[%clk 0:02:16.7]} 11... Qxe7 {[%clk 0:02:24.1]} 12. Rac1 {[%clk
0:02:07.6]} 12... Rac8 {[%clk 0:01:47.8]} 13. Qb3 {[%clk 0:02:06.9]} 13... Ndf6
{[%clk 0:01:37.8]} 14. Nc4 {[%clk 0:02:05]} 14... Rfd8 {[%clk 0:01:31.2]} 15.
Rfd1 {[%clk 0:02:03.2]} 15... h6 {[%clk 0:01:31.1]} 16. Nfe5 {[%clk 0:01:59.5]}
16... c5 {[%clk 0:01:17.1]} 17. e3 {[%clk 0:01:13.5]} 17... cxd4 {[%clk
0:01:15.4]} 18. exd4 {[%clk 0:01:13.4]} 18... Nd5 {[%clk 0:01:12]} 19. Nd2
{[%clk 0:00:58.4]} 19... Nxd2 {[%clk 0:01:00.2]} 20. Rxc8 {[%clk 0:00:53.5]}
20... Nxb3 {[%clk 0:00:59.7]} 21. Rxd8+ {[%clk 0:00:53.5]} 21... Qxd8 {[%clk
0:00:59.3]} 22. axb3 {[%clk 0:00:53.1]} 22... Bc2 {[%clk 0:00:56.6]} 23. Rc1
{[%clk 0:00:52.6]} 23... Bxb3 {[%clk 0:00:57.1]} 24. h4 {[%clk 0:00:45.9]} 24...
Nb6 {[%clk 0:00:49.1]} 25. Bxb7 {[%clk 0:00:36.3]} 25... Bd5 {[%clk 0:00:46.2]}
26. Ba6 {[%clk 0:00:32.8]} 26... Ba8 {[%clk 0:00:43.4]} 27. Rd1 {[%clk
0:00:22.7]} 27... Qd5 {[%clk 0:00:42.1]} 28. f3 {[%clk 0:00:19.2]} 28... f6
{[%clk 0:00:42.6]} 29. Ng6 {[%clk 0:00:12.7]} 29... Qxf3 {[%clk 0:00:42.6]} 30.
Rd2 {[%clk 0:00:11]} 30... Qxg3+ {[%clk 0:00:40.8]} 0-1

[Event "*** Titled Tuesday 3|2 Blitz"]
[Site "Chess.com"]
[Date "2016.06.07"]
[Round "1"]
[White "saraswathii"]
[Black "sandropozo"]
[Result "0-1"]
[WhiteElo "1970"]
[BlackElo "2407"]
[TimeControl "180+2"]
[EndTime "17:08:14 PDT"]
[Termination "sandropozo won on time"]

1. e4 {[%clk 0:02:55.7]} 1... e6 {[%clk 0:02:58.6]} 2. d3 {[%clk 0:02:56.3]}
2... d5 {[%clk 0:02:59.8]} 3. Nd2 {[%clk 0:02:56.8]} 3... Nc6 {[%clk 0:02:59.6]}
4. Ngf3 {[%clk 0:02:57]} 4... Nf6 {[%clk 0:03:00.7]} 5. g3 {[%clk 0:02:57.7]}
5... dxe4 {[%clk 0:03:01.8]} 6. dxe4 {[%clk 0:02:58]} 6... Bc5 {[%clk
0:03:03.3]} 7. Bg2 {[%clk 0:02:58.8]} 7... O-O {[%clk 0:03:04.9]} 8. O-O {[%clk
0:02:59.5]} 8... e5 {[%clk 0:03:06.5]} 9. c3 {[%clk 0:02:59.1]} 9... a5 {[%clk
0:03:08.1]} 10. Qe2 {[%clk 0:02:59.2]} 10... b6 {[%clk 0:03:08.6]} 11. Nc4
{[%clk 0:02:54.4]} 11... Ba6 {[%clk 0:03:10.1]} 12. b3 {[%clk 0:02:48.9]} 12...
Qe7 {[%clk 0:03:04]} 13. Nh4 {[%clk 0:02:44.5]} 13... g6 {[%clk 0:03:01.9]} 14.
Bg5 {[%clk 0:02:43.3]} 14... Qe6 {[%clk 0:03:03.4]} 15. Rad1 {[%clk 0:02:25.3]}
15... a4 {[%clk 0:02:54.6]} 16. Kh1 {[%clk 0:02:16.9]} 16... axb3 {[%clk
0:02:54.2]} 17. axb3 {[%clk 0:02:17.2]} 17... Na5 {[%clk 0:02:55.8]} 18. Qf3
{[%clk 0:02:12.1]} 18... Nd7 {[%clk 0:02:42]} 19. Bh6 {[%clk 0:01:46.5]} 19...
Rfd8 {[%clk 0:02:25]} 20. Rfe1 {[%clk 0:01:35]} 20... Nxc4 {[%clk 0:02:10.6]}
21. bxc4 {[%clk 0:01:36.9]} 21... Bxc4 {[%clk 0:02:12]} 22. Rd2 {[%clk
0:01:33.6]} 22... Nf6 {[%clk 0:01:52.1]} 23. Red1 {[%clk 0:01:30.5]} 23... Rxd2
{[%clk 0:01:52.9]} 24. Rxd2 {[%clk 0:01:29.5]} 24... Ra1+ {[%clk 0:01:53.4]} 25.
Rd1 {[%clk 0:01:30]} 25... Rxd1+ {[%clk 0:01:47.7]} 26. Qxd1 {[%clk 0:01:31.9]}
26... Qd7 {[%clk 0:01:42.7]} 27. Qa1 {[%clk 0:01:16.8]} 27... Bf8 {[%clk
0:01:24.4]} 28. Bg5 {[%clk 0:01:10.4]} 28... Ng4 {[%clk 0:01:20.7]} 29. Kg1
{[%clk 0:01:08.8]} 29... Bc5 {[%clk 0:01:16.7]} 30. h3 {[%clk 0:00:59.2]} 30...
Nxf2 {[%clk 0:01:08.3]} 31. Qa8+ {[%clk 0:00:47.5]} 31... Kg7 {[%clk 0:01:09.2]}
32. Kh2 {[%clk 0:00:37.3]} 32... Be7 {[%clk 0:00:54.7]} 33. Bxe7 {[%clk
0:00:20.7]} 33... Qxe7 {[%clk 0:00:55.7]} 34. Qc6 {[%clk 0:00:22.1]} 34... b5
{[%clk 0:00:49.3]} 35. Nf3 {[%clk 0:00:15.4]} 35... Nd3 {[%clk 0:00:45.5]} 36.
Nd2 {[%clk 0:00:12.6]} 36... Qd6 {[%clk 0:00:42.9]} 37. Qe8 {[%clk 0:00:05.4]}
37... Ne1 {[%clk 0:00:41.9]} 0-1

[Event "*** Titled Tuesday 3|2 Blitz"]
[Site "Chess.com"]
[Date "2016.06.07"]
[Round "1"]
[White "hangemhigh"]
[Black "Cruel_Yaro"]
[Result "0-1"]
[WhiteElo "2216"]
[BlackElo "2552"]
[TimeControl "180+2"]
[EndTime "17:08:18 PDT"]
[Termination "Cruel_Yaro won on time"]

1. d4 {[%clk 0:02:49.2]} 1... Nf6 {[%clk 0:02:55]} 2. Nf3 {[%clk 0:02:46.1]}
2... c5 {[%clk 0:02:56.9]} 3. d5 {[%clk 0:02:45.9]} 3... e6 {[%clk 0:02:58.1]}
4. c4 {[%clk 0:02:41.6]} 4... exd5 {[%clk 0:03:00]} 5. cxd5 {[%clk 0:02:42.9]}
5... d6 {[%clk 0:03:01.9]} 6. Nc3 {[%clk 0:02:43.3]} 6... g6 {[%clk 0:03:03.4]}
7. Bf4 {[%clk 0:02:44.4]} 7... a6 {[%clk 0:03:04.7]} 8. e4 {[%clk 0:02:37.2]}
8... Bg7 {[%clk 0:03:05.1]} 9. Qa4+ {[%clk 0:02:35.1]} 9... Bd7 {[%clk
0:02:55.8]} 10. Qb3 {[%clk 0:02:34.5]} 10... Qc7 {[%clk 0:02:19.8]} 11. a4
{[%clk 0:02:34.1]} 11... O-O {[%clk 0:02:19.7]} 12. Be2 {[%clk 0:02:33]} 12...
Bg4 {[%clk 0:02:18.1]} 13. h3 {[%clk 0:02:31.2]} 13... Bxf3 {[%clk 0:02:18.7]}
14. Bxf3 {[%clk 0:02:33.1]} 14... Nbd7 {[%clk 0:02:19.6]} 15. O-O {[%clk
0:02:31.8]} 15... Ne8 {[%clk 0:02:15.5]} 16. a5 {[%clk 0:02:24.5]} 16... Rb8
{[%clk 0:02:15.9]} 17. Rfe1 {[%clk 0:02:24.3]} 17... b5 {[%clk 0:02:14.4]} 18.
axb6 {[%clk 0:02:23.2]} 18... Rxb6 {[%clk 0:02:15.8]} 19. Qc2 {[%clk 0:02:22.1]}
19... Qb7 {[%clk 0:02:13.4]} 20. Ra2 {[%clk 0:02:12.1]} 20... Be5 {[%clk
0:02:06.3]} 21. Bc1 {[%clk 0:01:58.4]} 21... Nc7 {[%clk 0:02:04.1]} 22. Bg4
{[%clk 0:01:48.4]} 22... Nf6 {[%clk 0:01:59.7]} 23. Nb1 {[%clk 0:01:38.8]} 23...
Nxg4 {[%clk 0:01:52.5]} 24. hxg4 {[%clk 0:01:39.1]} 24... Qc8 {[%clk 0:01:51.7]}
25. g5 {[%clk 0:01:31.8]} 25... Qg4 {[%clk 0:01:50.4]} 26. Qe2 {[%clk
0:01:23.7]} 26... Qh4 {[%clk 0:01:47.9]} 27. g3 {[%clk 0:01:16.5]} 27... Qh3
{[%clk 0:01:48.7]} 28. Nd2 {[%clk 0:01:10.2]} 28... Nb5 {[%clk 0:01:36.3]} 29.
Qf1 {[%clk 0:01:06]} 29... Qg4 {[%clk 0:01:31.4]} 30. Qe2 {[%clk 0:00:43.2]}
30... Qc8 {[%clk 0:01:10.3]} 31. f4 {[%clk 0:00:32.4]} 31... Nd4 {[%clk
0:01:08.9]} 32. Qg2 {[%clk 0:00:32.6]} 32... Bg7 {[%clk 0:01:09.1]} 33. Nc4
{[%clk 0:00:31.9]} 33... Rb3 {[%clk 0:01:07.6]} 34. Re3 {[%clk 0:00:25.2]} 34...
Qg4 {[%clk 0:01:04.2]} 35. Rxb3 {[%clk 0:00:20.5]} 35... Qd1+ {[%clk 0:01:04.5]}
36. Qf1 {[%clk 0:00:20]} 36... Qxb3 {[%clk 0:01:05.2]} 37. Ra3 {[%clk
0:00:16.4]} 37... Qc2 {[%clk 0:01:05.8]} 38. Be3 {[%clk 0:00:11.2]} 38... Ne2+
{[%clk 0:01:01.6]} 39. Kg2 {[%clk 0:00:04.9]} 39... Qxe4+ {[%clk 0:01:00.8]} 40.
Qf3 {[%clk 0:00:04.2]} 40... Qxc4 {[%clk 0:01:01.5]} 0-1

[Event "*** Titled Tuesday 3|2 Blitz"]
[Site "Chess.com"]
[Date "2016.06.07"]
[Round "1"]
[White "Keaton87"]
[Black "1random"]
[Result "0-1"]
[WhiteElo "2458"]
[BlackElo "2119"]
[TimeControl "180+2"]
[EndTime "17:08:27 PDT"]
[Termination "1random won by resignation"]

1. d4 {[%clk 0:02:59.7]} 1... Nf6 {[%clk 0:02:58]} 2. Bg5 {[%clk 0:02:58.4]}
2... e6 {[%clk 0:02:48.3]} 3. e3 {[%clk 0:02:55]} 3... d5 {[%clk 0:02:44.7]} 4.
Bd3 {[%clk 0:02:53]} 4... c5 {[%clk 0:02:45.9]} 5. c3 {[%clk 0:02:54.1]} 5...
Nc6 {[%clk 0:02:46.2]} 6. Nd2 {[%clk 0:02:55]} 6... e5 {[%clk 0:02:30.1]} 7.
dxe5 {[%clk 0:02:48.4]} 7... Nxe5 {[%clk 0:02:32]} 8. Bb5+ {[%clk 0:02:49.2]}
8... Nc6 {[%clk 0:02:29.6]} 9. Ngf3 {[%clk 0:02:48.9]} 9... Be7 {[%clk
0:02:27.3]} 10. O-O {[%clk 0:02:49.1]} 10... Bg4 {[%clk 0:02:27.3]} 11. h3
{[%clk 0:02:45.5]} 11... Bh5 {[%clk 0:02:27.6]} 12. Qc2 {[%clk 0:02:42.4]} 12...
O-O {[%clk 0:02:26.7]} 13. Be2 {[%clk 0:02:40]} 13... Ne4 {[%clk 0:02:07.7]} 14.
Bxe7 {[%clk 0:02:25]} 14... Qxe7 {[%clk 0:02:05.3]} 15. Rfe1 {[%clk 0:02:16.7]}
15... Rfe8 {[%clk 0:01:59.8]} 16. Nxe4 {[%clk 0:02:16.3]} 16... dxe4 {[%clk
0:02:00.1]} 17. Nd2 {[%clk 0:02:17.1]} 17... Bxe2 {[%clk 0:01:59.7]} 18. Rxe2
{[%clk 0:02:19]} 18... Rad8 {[%clk 0:01:56.6]} 19. Ree1 {[%clk 0:02:16]} 19...
Rd3 {[%clk 0:01:44.3]} 20. Rad1 {[%clk 0:02:13.1]} 20... Red8 {[%clk 0:01:45]}
21. Nf1 {[%clk 0:02:08.7]} 21... c4 {[%clk 0:01:32.8]} 22. Qa4 {[%clk
0:01:53.2]} 22... Ne5 {[%clk 0:01:23.1]} 23. Rxd3 {[%clk 0:01:46.8]} 23... Nxd3
{[%clk 0:01:06]} 24. Rd1 {[%clk 0:01:45.5]} 24... Qc5 {[%clk 0:00:56.8]} 25. Rd2
{[%clk 0:01:42.8]} 25... b5 {[%clk 0:00:56.4]} 26. Qa6 {[%clk 0:01:41.8]} 26...
Qb6 {[%clk 0:00:55.2]} 27. Qxb6 {[%clk 0:01:38.7]} 27... axb6 {[%clk 0:00:56]}
28. a3 {[%clk 0:01:40.1]} 28... f5 {[%clk 0:00:56.1]} 29. Ng3 {[%clk 0:01:40.2]}
29... Rd5 {[%clk 0:00:55.5]} 30. f3 {[%clk 0:01:37.7]} 30... exf3 {[%clk
0:00:45.9]} 31. gxf3 {[%clk 0:01:39.6]} 31... g6 {[%clk 0:00:45.3]} 32. Nh1
{[%clk 0:01:32.4]} 32... Re5 {[%clk 0:00:39.1]} 33. Re2 {[%clk 0:01:22.4]} 33...
Nf4 {[%clk 0:00:38.6]} 34. Re1 {[%clk 0:01:18.8]} 34... Nxh3+ {[%clk 0:00:35.8]}
35. Kf1 {[%clk 0:01:19]} 35... Rd5 {[%clk 0:00:37.3]} 36. Kg2 {[%clk 0:01:16.6]}
36... Ng5 {[%clk 0:00:36.7]} 37. Re2 {[%clk 0:01:16.2]} 37... Ne6 {[%clk
0:00:33.5]} 38. Nf2 {[%clk 0:01:15.7]} 38... Nc5 {[%clk 0:00:34.6]} 39. e4
{[%clk 0:01:11.4]} 39... fxe4 {[%clk 0:00:35.2]} 40. fxe4 {[%clk 0:01:12.8]}
40... Re5 {[%clk 0:00:35.5]} 41. Kf3 {[%clk 0:01:13.1]} 41... Kf7 {[%clk
0:00:36.2]} 42. Ng4 {[%clk 0:01:13.7]} 42... Re8 {[%clk 0:00:35.7]} 43. Nf2
{[%clk 0:01:07]} 43... h5 {[%clk 0:00:35.8]} 44. Rd2 {[%clk 0:01:08.4]} 44...
Ke7 {[%clk 0:00:34.4]} 45. Rd5 {[%clk 0:01:08.4]} 45... Rd8 {[%clk 0:00:34.2]}
46. Rg5 {[%clk 0:00:55.6]} 46... Kf6 {[%clk 0:00:35.2]} 47. Rg2 {[%clk
0:00:57.2]} 47... Nd3 {[%clk 0:00:32.2]} 48. Nh3 {[%clk 0:00:50.9]} 48... Ne1+
{[%clk 0:00:30]} 49. Kf2 {[%clk 0:00:51.6]} 49... Rd2+ {[%clk 0:00:29.6]} 50.
Kxe1 {[%clk 0:00:51.5]} 50... Rxg2 {[%clk 0:00:30.6]} 51. Nf4 {[%clk 0:00:52.7]}
51... Rxb2 {[%clk 0:00:31.1]} 52. Nd5+ {[%clk 0:00:52.5]} 52... Ke5 {[%clk
0:00:32.4]} 0-1